[Event "MČR juniorů a juniorek v rapid šachu 2023"]
[Site "Czech Republic"]
[Date "2023.09.23"]
[Round "3.5"]
[White "Svacina, Tobias"]
[Black "Cibulka, Josef"]
[Result "1/2-1/2"]
[TimeControl "20 min + 5 sec per move"]
[WhiteFideId "385859"]
[BlackFideId "23708042"]
[WhiteElo "1782"]
[BlackElo "1922"]

1. e4 {[%clk 00:20:07]} {[%emt 00:00:02]} c5 {[%clk 00:20:09]} {[%emt
00:00:01]} 2. Nf3 {[%clk 00:20:07]} {[%emt 00:00:06]} Nc6 {[%clk 00:20:13]}
{[%emt 00:00:02]} 3. d4 {[%clk 00:20:09]} {[%emt 00:00:02]} cxd4 {[%clk
00:20:14]} {[%emt 00:00:03]} 4. Nxd4 {[%clk 00:20:13]} {[%emt 00:00:03]} g6
{[%clk 00:20:17]} 5. Nc3 {[%clk 00:20:08]} {[%emt 00:00:09]} Bg7 {[%clk
00:20:21]} {[%emt 00:00:02]} 6. Be3 {[%clk 00:20:12]} {[%emt 00:00:02]} Nf6
{[%clk 00:20:23]} {[%emt 00:00:02]} 7. Be2 {[%clk 00:20:09]} {[%emt 00:00:08]}
O-O {[%clk 00:20:25]} {[%emt 00:00:03]} 8. Nb3 {[%clk 00:20:13]} {[%emt
00:00:02]} d6 {[%clk 00:20:23]} {[%emt 00:00:07]} 9. f4 {[%clk 00:20:16]}
{[%emt 00:00:01]} Bd7 {[%clk 00:20:20]} {[%emt 00:00:08]} 10. g4 {[%clk
00:20:20]} {[%emt 00:00:02]} a6 {[%clk 00:20:10]} {[%emt 00:00:15]} 11. g5
{[%clk 00:20:18]} {[%emt 00:00:07]} Ne8 {[%clk 00:20:12]} {[%emt 00:00:03]} 12.
h4 {[%clk 00:20:21]} {[%emt 00:00:01]} b5 {[%clk 00:20:07]} {[%emt 00:00:10]}
13. h5 {[%clk 00:19:17]} {[%emt 00:01:09]} Nc7 {[%clk 00:19:34]} {[%emt
00:00:38]} 14. a3 {[%clk 00:17:26]} {[%emt 00:01:56]} a5 {[%clk 00:19:13]}
{[%emt 00:00:26]} 15. Qd2 {[%clk 00:15:26]} {[%emt 00:02:06]} b4 {[%clk
00:18:32]} {[%emt 00:00:46]} 16. Nd1 {[%clk 00:14:58]} {[%emt 00:00:33]} a4
{[%clk 00:18:26]} {[%emt 00:00:11]} 17. Nd4 {[%clk 00:14:33]} {[%emt 00:00:31]}
Nxd4 {[%clk 00:18:15]} {[%emt 00:00:15]} 18. Bxd4 {[%clk 00:14:35]} {[%emt
00:00:03]} e5 {[%clk 00:17:26]} {[%emt 00:00:53]} 19. fxe5 {[%clk 00:12:50]}
{[%emt 00:01:50]} Ne6 {[%clk 00:16:31]} {[%emt 00:01:00]} 20. Be3 {[%clk
00:11:12]} {[%emt 00:01:44]} dxe5 {[%clk 00:15:51]} {[%emt 00:00:45]} 21. hxg6
{[%clk 00:09:52]} {[%emt 00:01:25]} hxg6 {[%clk 00:15:43]} {[%emt 00:00:13]} 22.
Bc4 {[%clk 00:09:20]} {[%emt 00:00:37]} Nd4 {[%clk 00:14:42]} {[%emt 00:01:05]}
23. Bxd4 {[%clk 00:08:31]} {[%emt 00:00:54]} exd4 {[%clk 00:14:46]} {[%emt
00:00:02]} 24. Nf2 {[%clk 00:05:00]} {[%emt 00:03:36]} Re8 {[%clk 00:13:49]}
{[%emt 00:01:01]} 25. axb4 {[%clk 00:03:36]} {[%emt 00:01:30]} Qc7 {[%clk
00:12:31]} {[%emt 00:01:22]} 26. Bd5 {[%clk 00:03:16]} {[%emt 00:00:26]} Rac8
{[%clk 00:12:23]} {[%emt 00:00:14]} 27. Kd1 {[%clk 00:02:29]} {[%emt 00:00:51]}
Be6 {[%clk 00:10:27]} {[%emt 00:02:01]} 28. Bxe6 {[%clk 00:02:31]} {[%emt
00:00:03]} Rxe6 {[%clk 00:10:30]} {[%emt 00:00:02]} 29. b5 {[%clk 00:01:52]}
{[%emt 00:00:44]} Re5 {[%clk 00:09:57]} {[%emt 00:00:37]} 30. Rxa4 {[%clk
00:01:56]} {[%emt 00:00:02]} Rc5 {[%clk 00:09:36]} {[%emt 00:00:25]} 31. Nd3
{[%clk 00:01:32]} {[%emt 00:00:30]} Rxc2 {[%clk 00:09:36]} {[%emt 00:00:05]} 32.
Qf4 {[%clk 00:01:33]} {[%emt 00:00:04]} Qxf4 {[%clk 00:09:22]} {[%emt
00:00:18]} 33. Nxf4 {[%clk 00:01:37]} {[%emt 00:00:01]} Rxb2 {[%clk 00:09:26]}
{[%emt 00:00:02]} 34. Rh3 {[%clk 00:01:36]} {[%emt 00:00:05]} Rxb5 {[%clk
00:09:20]} {[%emt 00:00:11]} 35. Nd5 {[%clk 00:01:24]} {[%emt 00:00:17]} Rcb8
{[%clk 00:09:04]} {[%emt 00:00:22]} 36. Rha3 {[%clk 00:00:55]} {[%emt
00:00:34]} Rb1+ {[%clk 00:08:25]} {[%emt 00:00:44]} 37. Ke2 {[%clk 00:00:55]}
{[%emt 00:00:05]} Rg1 {[%clk 00:08:19]} {[%emt 00:00:10]} 38. Ne7+ {[%clk
00:00:26]} {[%emt 00:00:34]} Kf8 {[%clk 00:08:05]} {[%emt 00:00:19]} 39. Nc6
{[%clk 00:00:29]} {[%emt 00:00:03]} Re8 {[%clk 00:07:55]} {[%emt 00:00:15]} 40.
Kf3 {[%clk 00:00:20]} {[%emt 00:00:13]} Rxg5 {[%clk 00:07:48]} {[%emt
00:00:12]} 41. Nxd4 {[%clk 00:00:22]} {[%emt 00:00:04]} Bxd4 {[%clk 00:07:40]}
{[%emt 00:00:12]} 42. Rxd4 {[%clk 00:00:27]} Rge5 {[%clk 00:07:37]} {[%emt
00:00:08]} 43. Ra7 {[%clk 00:00:27]} {[%emt 00:00:05]} R8e7 {[%clk 00:07:38]}
{[%emt 00:00:03]} 44. Ra6 {[%clk 00:00:29]} {[%emt 00:00:04]} Kg7 {[%clk
00:07:41]} {[%emt 00:00:03]} 45. Ra1 {[%clk 00:00:21]} {[%emt 00:00:12]} g5
{[%clk 00:07:37]} {[%emt 00:00:09]} 46. Ra6 {[%clk 00:00:21]} {[%emt 00:00:05]}
f6 {[%clk 00:07:38]} {[%emt 00:00:03]} 47. Rdd6 {[%clk 00:00:17]} {[%emt
00:00:10]} Rf7 {[%clk 00:07:16]} {[%emt 00:00:27]} 48. Rab6 {[%clk 00:00:18]}
{[%emt 00:00:04]} Kg6 {[%clk 00:07:16]} {[%emt 00:00:05]} 49. Ra6 {[%clk
00:00:21]} {[%emt 00:00:02]} Rb5 {[%clk 00:07:13]} {[%emt 00:00:08]} 50. Rac6
{[%clk 00:00:14]} {[%emt 00:00:13]} Rb3+ {[%clk 00:07:04]} {[%emt 00:00:14]} 51.
Kg4 {[%clk 00:00:15]} {[%emt 00:00:03]} Re3 {[%clk 00:07:06]} {[%emt 00:00:03]}
52. Re6 {[%clk 00:00:17]} {[%emt 00:00:04]} Kg7 {[%clk 00:07:01]} {[%emt
00:00:09]} 53. e5 {[%clk 00:00:07]} {[%emt 00:00:16]} Re4+ {[%clk 00:06:57]}
{[%emt 00:00:09]} 54. Kf3 {[%clk 00:00:09]} {[%emt 00:00:04]} Rxe5 {[%clk
00:06:58]} {[%emt 00:00:05]} 55. Rxe5 {[%clk 00:00:13]} fxe5+ {[%clk 00:07:01]}
{[%emt 00:00:02]} 56. Kg4 {[%clk 00:00:17]} Rf6 {[%clk 00:06:55]} {[%emt
00:00:11]} 57. Rc5 {[%clk 00:00:20]} {[%emt 00:00:01]} Kg6 {[%clk 00:06:48]}
{[%emt 00:00:13]} 58. Rxe5 {[%clk 00:00:23]} {[%emt 00:00:02]} Rf4+ {[%clk
00:06:51]} {[%emt 00:00:02]} 59. Kg3 {[%clk 00:00:27]} Rb4 {[%clk 00:06:52]}
{[%emt 00:00:04]} 60. Re3 {[%clk 00:00:29]} {[%emt 00:00:03]} Kh5 {[%clk
00:06:51]} {[%emt 00:00:05]} 61. Ra3 {[%clk 00:00:30]} {[%emt 00:00:05]} Rg4+
{[%clk 00:06:50]} {[%emt 00:00:05]} 62. Kh3 {[%clk 00:00:32]} {[%emt 00:00:03]}
Rb4 {[%clk 00:06:48]} {[%emt 00:00:08]} 63. Kg3 {[%clk 00:00:35]} {[%emt
00:00:03]} Rb1 {[%clk 00:06:49]} {[%emt 00:00:03]} 64. Ra4 {[%clk 00:00:22]}
{[%emt 00:00:19]} Rb3+ {[%clk 00:06:52]} {[%emt 00:00:02]} 65. Kg2 {[%clk
00:00:25]} {[%emt 00:00:02]} g4 {[%clk 00:06:55]} {[%emt 00:00:02]} 66. Ra8
{[%clk 00:00:24]} {[%emt 00:00:06]} Rb2+ {[%clk 00:06:37]} {[%emt 00:00:23]} 67.
Kg1 {[%clk 00:00:26]} {[%emt 00:00:03]} Kh4 {[%clk 00:06:39]} {[%emt 00:00:03]}
68. Ra1 {[%clk 00:00:28]} {[%emt 00:00:02]} Kh3 {[%clk 00:06:37]} {[%emt
00:00:07]} 69. Ra3+ {[%clk 00:00:29]} {[%emt 00:00:04]} g3 {[%clk 00:06:40]}
{[%emt 00:00:02]} 70. Ra1 {[%clk 00:00:33]} {[%emt 00:00:02]} Rg2+ {[%clk
00:06:32]} {[%emt 00:00:13]} 71. Kh1 {[%clk 00:00:36]} {[%emt 00:00:02]} Rc2
{[%clk 00:06:29]} {[%emt 00:00:08]} 72. Kg1 {[%clk 00:00:40]} {[%emt 00:00:02]}
Re2 {[%clk 00:06:26]} {[%emt 00:00:08]} 73. Rb1 {[%clk 00:00:43]} {[%emt
00:00:02]} Kg4 {[%clk 00:06:18]} {[%emt 00:00:13]} 74. Rb4+ {[%clk 00:00:43]}
{[%emt 00:00:05]} Kf3 {[%clk 00:06:20]} {[%emt 00:00:03]} 75. Rb3+ {[%clk
00:00:43]} {[%emt 00:00:06]} Kg4 {[%clk 00:05:49]} {[%emt 00:00:35]} 76. Rb4+
{[%clk 00:00:47]} {[%emt 00:00:02]} Kh3 {[%clk 00:05:52]} 77. Rb1 {[%clk
00:00:50]} Re5 {[%clk 00:05:44]} {[%emt 00:00:13]} 78. Ra1 {[%clk 00:00:52]}
{[%emt 00:00:04]} Rf5 {[%clk 00:05:38]} {[%emt 00:00:11]} 79. Rb1 {[%clk
00:00:48]} {[%emt 00:00:09]} Rf3 {[%clk 00:05:03]} {[%emt 00:00:40]} 80. Rb8
{[%clk 00:00:34]} {[%emt 00:00:19]} Rf4 {[%clk 00:04:44]} {[%emt 00:00:24]} 81.
Rh8+ {[%clk 00:00:32]} {[%emt 00:00:07]} Kg4 {[%clk 00:04:47]} {[%emt
00:00:01]} 82. Rb8 {[%clk 00:00:29]} {[%emt 00:00:08]} Re4 {[%clk 00:04:33]}
{[%emt 00:00:20]} 83. Rb1 {[%clk 00:00:31]} {[%emt 00:00:03]} Kh3 {[%clk
00:04:34]} {[%emt 00:00:04]} 84. Ra1 {[%clk 00:00:34]} {[%emt 00:00:02]} Re3
{[%clk 00:04:36]} {[%emt 00:00:02]} 85. Rb1 {[%clk 00:00:37]} {[%emt 00:00:03]}
g2 {[%clk 00:04:30]} {[%emt 00:00:10]} 86. Ra1 {[%clk 00:00:28]} {[%emt
00:00:14]} Kg3 {[%clk 00:04:18]} {[%emt 00:00:17]} 87. Rb1 {[%clk 00:00:28]}
{[%emt 00:00:06]} Kf3 {[%clk 00:04:15]} {[%emt 00:00:08]} 88. Ra1 {[%clk
00:00:28]} {[%emt 00:00:05]} Rd3 {[%clk 00:03:46]} {[%emt 00:00:34]} 89. Rb1
{[%clk 00:00:28]} {[%emt 00:00:05]} Re3 {[%clk 00:03:40]} {[%emt 00:00:11]}
1/2-1/2

[Event "MČR juniorů a juniorek v rapid šachu 2023"]
[Site "Czech Republic"]
[Date "2023.09.23"]
[Round "3.6"]
[White "Dobsa, Emma"]
[Black "Steinbauer, Sebastian"]
[Result "0-1"]
[TimeControl "20 min + 5 sec per move"]
[WhiteFideId "23709391"]
[BlackFideId "399272"]
[WhiteElo "1480"]
[BlackElo "1880"]

1. e4 {[%clk 00:20:09]} b6 {[%clk 00:19:57]} {[%emt 00:00:14]} 2. d4 {[%clk
00:20:12]} {[%emt 00:00:01]} Bb7 {[%clk 00:20:01]} {[%emt 00:00:02]} 3. Nc3
{[%clk 00:20:12]} {[%emt 00:00:05]} e6 {[%clk 00:20:04]} {[%emt 00:00:02]} 4.
f4 {[%clk 00:20:15]} {[%emt 00:00:01]} c5 {[%clk 00:20:08]} 5. d5 {[%clk
00:19:20]} {[%emt 00:01:00]} exd5 {[%clk 00:19:11]} {[%emt 00:01:02]} 6. exd5
{[%clk 00:19:20]} {[%emt 00:00:05]} Nf6 {[%clk 00:19:14]} {[%emt 00:00:02]} 7.
d6 {[%clk 00:17:55]} {[%emt 00:01:30]} Ne4 {[%clk 00:19:18]} {[%emt 00:00:02]}
8. Nxe4 {[%clk 00:14:39]} {[%emt 00:03:21]} Bxe4 {[%clk 00:19:21]} {[%emt
00:00:02]} 9. Bc4 {[%clk 00:13:24]} {[%emt 00:01:18]} Nc6 {[%clk 00:18:04]}
{[%emt 00:01:23]} 10. Qe2 {[%clk 00:12:11]} {[%emt 00:01:19]} f5 {[%clk
00:17:58]} {[%emt 00:00:11]} 11. Bd5 {[%clk 00:11:47]} {[%emt 00:00:29]} Nd4
{[%clk 00:17:30]} {[%emt 00:00:32]} 12. Qc4 {[%clk 00:10:26]} {[%emt 00:01:27]}
Bxd6 {[%clk 00:09:19]} {[%emt 00:08:15]} 13. Bxe4 {[%clk 00:09:40]} {[%emt
00:00:51]} fxe4 {[%clk 00:09:23]} {[%emt 00:00:01]} 14. Be3 {[%clk 00:09:42]}
{[%emt 00:00:03]} Qf6 {[%clk 00:08:24]} {[%emt 00:01:04]} 15. Ne2 {[%clk
00:08:46]} {[%emt 00:01:01]} Nxe2 {[%clk 00:08:18]} {[%emt 00:00:12]} 16. Qxe4+
{[%clk 00:08:48]} {[%emt 00:00:02]} Kf7 {[%clk 00:08:06]} {[%emt 00:00:17]} 17.
Kxe2 {[%clk 00:07:51]} {[%emt 00:01:02]} Rae8 {[%clk 00:07:10]} {[%emt
00:01:01]} 18. Qd5+ {[%clk 00:07:53]} {[%emt 00:00:03]} Kf8 {[%clk 00:05:47]}
{[%emt 00:01:28]} 19. g3 {[%clk 00:06:44]} {[%emt 00:01:14]} g6 {[%clk
00:05:46]} {[%emt 00:00:06]} 20. Rhe1 {[%clk 00:06:15]} {[%emt 00:00:34]} Re6
{[%clk 00:04:48]} {[%emt 00:01:03]} 21. Qa8+ {[%clk 00:05:31]} {[%emt
00:00:49]} Ke7 {[%clk 00:04:51]} {[%emt 00:00:03]} 22. Qxa7 {[%clk 00:05:19]}
{[%emt 00:00:16]} Qxb2 {[%clk 00:04:47]} {[%emt 00:00:09]} 23. Kf3 {[%clk
00:04:44]} {[%emt 00:00:41]} Qxc2 {[%clk 00:04:32]} {[%emt 00:00:20]} 24. Qxb6
{[%clk 00:04:47]} {[%emt 00:00:02]} Rb8 {[%clk 00:04:31]} {[%emt 00:00:06]} 25.
Qa7 {[%clk 00:04:04]} {[%emt 00:00:48]} Rb2 {[%clk 00:04:33]} {[%emt 00:00:03]}
26. a4 {[%clk 00:00:22]} {[%emt 00:03:47]} Qg2+ {[%clk 00:04:22]} {[%emt
00:00:15]} 27. Kg4 {[%clk 00:00:26]} Qxh2 {[%clk 00:04:22]} {[%emt 00:00:04]}
28. Rh1 {[%clk 00:00:10]} {[%emt 00:00:21]} h5+ {[%clk 00:04:26]} {[%emt
00:00:02]} 29. Kg5 {[%clk 00:00:14]} Qxg3+ {[%clk 00:04:29]} {[%emt 00:00:02]}
30. Kh6 {[%clk 00:00:18]} {[%emt 00:00:01]} Bxf4+ {[%clk 00:04:28]} {[%emt
00:00:07]} 31. Bxf4 {[%clk 00:00:11]} {[%emt 00:00:12]} Qxf4+ {[%clk 00:04:31]}
{[%emt 00:00:02]} 32. Kh7 {[%clk 00:00:14]} {[%emt 00:00:01]} Qf7 {[%clk
00:04:35]} 33. Kh6 {[%clk 00:00:17]} {[%emt 00:00:02]} g5+ {[%clk 00:04:38]}
{[%emt 00:00:01]} 34. Kxg5 {[%clk 00:00:20]} {[%emt 00:00:02]} Rg2+ {[%clk
00:04:40]} {[%emt 00:00:04]} 35. Kh4 {[%clk 00:00:23]} {[%emt 00:00:03]} Re4+
{[%clk 00:04:42]} {[%emt 00:00:03]} 36. Kh3 {[%clk 00:00:26]} Qf3# {[%clk
00:04:43]} {[%emt 00:00:04]} 0-1

[Event "MČR juniorů a juniorek v rapid šachu 2023"]
[Site "Czech Republic"]
[Date "2023.09.23"]
[Round "3.7"]
[White "Nagy, Ladislav"]
[Black "Zadrapova, Amalie"]
[Result "1/2-1/2"]
[TimeControl "20 min + 5 sec per move"]
[WhiteFideId "374300"]
[BlackFideId "23710276"]
[WhiteElo "2089"]
[BlackElo "1590"]

1. e4 {[%clk 00:20:08]} {[%emt 00:00:02]} c5 {[%clk 00:20:09]} {[%emt
00:00:02]} 2. Nf3 {[%clk 00:20:09]} {[%emt 00:00:03]} d6 {[%clk 00:20:13]}
{[%emt 00:00:02]} 3. d4 {[%clk 00:20:10]} {[%emt 00:00:04]} cxd4 {[%clk
00:20:16]} {[%emt 00:00:02]} 4. Qxd4 {[%clk 00:20:12]} {[%emt 00:00:03]} Nc6
{[%clk 00:20:15]} {[%emt 00:00:06]} 5. Bb5 {[%clk 00:20:14]} {[%emt 00:00:03]}
Bd7 {[%clk 00:20:11]} {[%emt 00:00:10]} 6. Bxc6 {[%clk 00:20:17]} {[%emt
00:00:02]} bxc6 {[%clk 00:19:59]} {[%emt 00:00:17]} 7. c4 {[%clk 00:19:43]}
{[%emt 00:00:39]} e5 {[%clk 00:19:00]} {[%emt 00:01:04]} 8. Qd3 {[%clk
00:19:34]} {[%emt 00:00:13]} Nf6 {[%clk 00:18:41]} {[%emt 00:00:24]} 9. Nc3
{[%clk 00:19:28]} {[%emt 00:00:11]} Be7 {[%clk 00:18:40]} {[%emt 00:00:07]} 10.
O-O {[%clk 00:17:05]} {[%emt 00:02:27]} O-O {[%clk 00:18:41]} {[%emt 00:00:04]}
11. Bg5 {[%clk 00:15:32]} {[%emt 00:01:38]} Be6 {[%clk 00:16:24]} {[%emt
00:02:23]} 12. Rfd1 {[%clk 00:14:25]} {[%emt 00:01:11]} Qb6 {[%clk 00:14:13]}
{[%emt 00:02:17]} 13. b3 {[%clk 00:11:28]} {[%emt 00:03:01]} Rfd8 {[%clk
00:13:44]} {[%emt 00:00:34]} 14. Be3 {[%clk 00:10:30]} {[%emt 00:01:03]} Qc7
{[%clk 00:13:33]} {[%emt 00:00:16]} 15. Rac1 {[%clk 00:10:17]} {[%emt
00:00:19]} Rac8 {[%clk 00:12:40]} {[%emt 00:00:58]} 16. h3 {[%clk 00:10:00]}
{[%emt 00:00:21]} Qb8 {[%clk 00:12:02]} {[%emt 00:00:44]} 17. Ng5 {[%clk
00:09:00]} {[%emt 00:01:04]} h6 {[%clk 00:11:40]} {[%emt 00:00:27]} 18. Nxe6
{[%clk 00:08:58]} {[%emt 00:00:07]} fxe6 {[%clk 00:11:42]} {[%emt 00:00:03]} 19.
f4 {[%clk 00:06:02]} {[%emt 00:03:01]} d5 {[%clk 00:10:23]} {[%emt 00:01:25]}
20. fxe5 {[%clk 00:05:03]} {[%emt 00:01:03]} Qxe5 {[%clk 00:10:12]} {[%emt
00:00:16]} 21. Bd4 {[%clk 00:04:43]} {[%emt 00:00:25]} Qg5 {[%clk 00:09:09]}
{[%emt 00:01:08]} 22. Bxf6 {[%clk 00:03:17]} {[%emt 00:01:31]} Bxf6 {[%clk
00:08:32]} {[%emt 00:00:43]} 23. Ne2 {[%clk 00:01:45]} {[%emt 00:01:37]} d4
{[%clk 00:07:36]} {[%emt 00:01:01]} 24. Kh1 {[%clk 00:00:51]} {[%emt 00:00:59]}
c5 {[%clk 00:07:08]} {[%emt 00:00:32]} 25. Rf1 {[%clk 00:00:46]} {[%emt
00:00:10]} Be5 {[%clk 00:06:08]} {[%emt 00:01:05]} 26. Rf3 {[%clk 00:00:40]}
{[%emt 00:00:11]} Rf8 {[%clk 00:05:57]} {[%emt 00:00:17]} 27. Rcf1 {[%clk
00:00:42]} {[%emt 00:00:02]} Bd6 {[%clk 00:05:15]} {[%emt 00:00:47]} 28. Rxf8+
{[%clk 00:00:38]} {[%emt 00:00:10]} Rxf8 {[%clk 00:05:17]} {[%emt 00:00:03]} 29.
Rxf8+ {[%clk 00:00:42]} Bxf8 {[%clk 00:04:54]} {[%emt 00:00:28]} 30. Kg1 {[%clk
00:00:30]} {[%emt 00:00:16]} Bd6 {[%clk 00:04:51]} {[%emt 00:00:08]} 31. Kf2
{[%clk 00:00:33]} {[%emt 00:00:03]} Qh4+ {[%clk 00:04:14]} {[%emt 00:00:42]} 32.
Kf1 {[%clk 00:00:36]} {[%emt 00:00:01]} Bc7 {[%clk 00:03:50]} {[%emt 00:00:30]}
33. Ng1 {[%clk 00:00:26]} {[%emt 00:00:15]} Bg3 {[%clk 00:02:57]} {[%emt
00:00:57]} 34. Nf3 {[%clk 00:00:22]} {[%emt 00:00:09]} Qf4 {[%clk 00:02:53]}
{[%emt 00:00:09]} 35. Ke2 {[%clk 00:00:13]} {[%emt 00:00:15]} g5 {[%clk
00:02:49]} {[%emt 00:00:08]} 36. Kd1 {[%clk 00:00:12]} {[%emt 00:00:06]} h5
{[%clk 00:02:23]} {[%emt 00:00:31]} 37. Nd2 {[%clk 00:00:11]} {[%emt 00:00:06]}
Bf2 {[%clk 00:01:58]} {[%emt 00:00:30]} 38. Qf3 {[%clk 00:00:12]} {[%emt
00:00:05]} Be3 {[%clk 00:01:41]} {[%emt 00:00:22]} 39. Qxf4 {[%clk 00:00:14]}
{[%emt 00:00:02]} Bxf4 {[%clk 00:01:37]} {[%emt 00:00:09]} 40. Nf3 {[%clk
00:00:14]} {[%emt 00:00:05]} g4 {[%clk 00:01:34]} {[%emt 00:00:09]} 41. hxg4
{[%clk 00:00:17]} {[%emt 00:00:01]} hxg4 {[%clk 00:01:37]} {[%emt 00:00:02]} 42.
Ne1 {[%clk 00:00:21]} Kg7 {[%clk 00:01:27]} {[%emt 00:00:15]} 43. Nd3 {[%clk
00:00:25]} {[%emt 00:00:01]} Bd6 {[%clk 00:01:27]} {[%emt 00:00:05]} 44. a3
{[%clk 00:00:20]} {[%emt 00:00:11]} a5 {[%clk 00:01:28]} {[%emt 00:00:04]} 45.
Ke2 {[%clk 00:00:19]} {[%emt 00:00:06]} Kg6 {[%clk 00:01:13]} {[%emt 00:00:20]}
46. Kf2 {[%clk 00:00:11]} {[%emt 00:00:12]} Kg5 {[%clk 00:01:15]} {[%emt
00:00:03]} 47. Ke2 {[%clk 00:00:09]} {[%emt 00:00:07]} Kh4 {[%clk 00:00:58]}
{[%emt 00:00:22]} 48. Kf2 {[%clk 00:00:11]} {[%emt 00:00:03]} Kg5 {[%clk
00:01:00]} {[%emt 00:00:02]} 49. Ke2 {[%clk 00:00:12]} {[%emt 00:00:04]}
1/2-1/2

[Event "MČR juniorů a juniorek v rapid šachu 2023"]
[Site "Czech Republic"]
[Date "2023.09.23"]
[Round "3.8"]
[White "Pejrimovska, Viola Ruby"]
[Black "Jun, Rudolf"]
[Result "0-1"]
[TimeControl "20 min + 5 sec per move"]
[WhiteFideId "23709529"]
[BlackFideId "376612"]
[WhiteElo "1581"]
[BlackElo "2151"]

1. e4 {[%clk 00:20:09]} g6 {[%clk 00:19:30]} {[%emt 00:00:41]} 2. d4 {[%clk
00:20:09]} {[%emt 00:00:05]} Bg7 {[%clk 00:19:30]} {[%emt 00:00:05]} 3. Nc3
{[%clk 00:20:11]} {[%emt 00:00:02]} d6 {[%clk 00:19:33]} {[%emt 00:00:02]} 4.
Be3 {[%clk 00:20:13]} {[%emt 00:00:04]} c6 {[%clk 00:19:05]} {[%emt 00:00:33]}
5. Qd2 {[%clk 00:20:10]} {[%emt 00:00:08]} b5 {[%clk 00:18:46]} {[%emt
00:00:24]} 6. O-O-O {[%clk 00:19:48]} {[%emt 00:00:26]} h6 {[%clk 00:17:47]}
{[%emt 00:01:05]} 7. f4 {[%clk 00:19:43]} {[%emt 00:00:09]} Nf6 {[%clk
00:17:22]} {[%emt 00:00:30]} 8. Bd3 {[%clk 00:18:49]} {[%emt 00:00:59]} Ng4
{[%clk 00:17:19]} {[%emt 00:00:08]} 9. h3 {[%clk 00:18:32]} {[%emt 00:00:22]}
Nxe3 {[%clk 00:17:23]} {[%emt 00:00:02]} 10. Qxe3 {[%clk 00:18:35]} {[%emt
00:00:02]} b4 {[%clk 00:16:45]} {[%emt 00:00:42]} 11. Nce2 {[%clk 00:17:40]}
{[%emt 00:01:00]} Qa5 {[%clk 00:13:28]} {[%emt 00:03:22]} 12. Kb1 {[%clk
00:17:26]} {[%emt 00:00:19]} Ba6 {[%clk 00:13:19]} {[%emt 00:00:14]} 13. e5
{[%clk 00:16:28]} {[%emt 00:01:03]} dxe5 {[%clk 00:13:07]} {[%emt 00:00:18]} 14.
dxe5 {[%clk 00:15:47]} {[%emt 00:00:45]} e6 {[%clk 00:11:39]} {[%emt 00:01:34]}
15. g4 {[%clk 00:10:45]} {[%emt 00:05:06]} O-O {[%clk 00:07:42]} {[%emt
00:04:02]} 16. Nf3 {[%clk 00:10:48]} {[%emt 00:00:02]} Bxd3 {[%clk 00:07:44]}
{[%emt 00:00:04]} 17. Rxd3 {[%clk 00:09:12]} {[%emt 00:01:40]} Na6 {[%clk
00:05:37]} {[%emt 00:02:14]} 18. f5 {[%clk 00:08:51]} {[%emt 00:00:25]} Rfd8
{[%clk 00:02:02]} {[%emt 00:03:39]} 19. fxe6 {[%clk 00:05:57]} {[%emt
00:02:58]} fxe6 {[%clk 00:02:05]} {[%emt 00:00:03]} 20. Ned4 {[%clk 00:04:40]}
{[%emt 00:01:22]} Nc5 {[%clk 00:00:25]} {[%emt 00:01:45]} 21. Rdd1 {[%clk
00:02:01]} {[%emt 00:02:44]} Qc7 {[%clk 00:00:30]} 22. Nf5 {[%clk 00:01:26]}
{[%emt 00:00:39]} exf5 {[%clk 00:00:23]} {[%emt 00:00:12]} 23. Qxc5 {[%clk
00:01:25]} {[%emt 00:00:06]} fxg4 {[%clk 00:00:09]} {[%emt 00:00:19]} 24. hxg4
{[%clk 00:00:20]} {[%emt 00:01:11]} Qf7 {[%clk 00:00:13]} {[%emt 00:00:01]} 25.
Nd4 {[%clk 00:00:18]} {[%emt 00:00:06]} Rd5 {[%clk 00:00:09]} {[%emt 00:00:09]}
26. Qxc6 {[%clk 00:00:18]} {[%emt 00:00:06]} Rad8 {[%clk 00:00:13]} {[%emt
00:00:01]} 27. e6 {[%clk 00:00:08]} {[%emt 00:00:15]} Qe7 {[%clk 00:00:10]}
{[%emt 00:00:08]} 28. c3 {[%clk 00:00:09]} {[%emt 00:00:04]} bxc3 {[%clk
00:00:11]} {[%emt 00:00:04]} 29. bxc3 {[%clk 00:00:12]} {[%emt 00:00:02]} R5d6
{[%clk 00:00:13]} {[%emt 00:00:03]} 30. Qe4 {[%clk 00:00:12]} {[%emt 00:00:04]}
Bxd4 {[%clk 00:00:11]} {[%emt 00:00:08]} 31. cxd4 {[%clk 00:00:11]} {[%emt
00:00:06]} Rxe6 {[%clk 00:00:14]} {[%emt 00:00:02]} 32. Qf4 {[%clk 00:00:09]}
{[%emt 00:00:07]} Qb4+ {[%emt 00:00:06]} 33. Ka1 {[%clk 00:00:08]} {[%emt
00:00:01]} Qc3+ {[%clk 00:00:21]} {[%emt 00:00:01]} 34. Kb1 {[%clk 00:00:11]}
{[%emt 00:00:03]} Rb6# {[%clk 00:00:26]} 0-1